Cogmind - Beta 9.6 @@@ ROGUE MODE // 2020.06.01 @ 12:44:16 Player: OccultOnion Result: Destroyed by Y-45 Defender with Heavy Assault Rifle Performance ------------- Evolutions (2) 1000 Regions Visited (4) 800 Robots Destroyed (68) 340 Value Destroyed (1914) 1914 Prototype IDs (1) 20 Alien Tech Used (0) 0 Bonus (0) 0 TOTAL SCORE: 4074 Bonus ------- None Cogmind --------- Core Integrity 0/550 Matter 299/300 Energy 100/100 System Corruption 2% Temperature Cool (18) Movement Core (150) Ox2 Location -8/Materials Parts ------- > --- POWER (1) -------- (None) > --- PROPULSION (4) --- (None) > --- UTILITY (4) ------ Large Storage Unit Weight Redist. System Signal Interpreter > --- WEAPON (2) ------- Maul Heavy Hammer > --- INVENTORY (10) --- Light Ion Engine Light Ion Engine Improved Ion Engine Heat Sink Small Storage Unit Light Armor Plating Drone Bay (2/2) Peak State ------------ > --- POWER ------------ Nuclear Core > --- PROPULSION ------- Light Treads Light Treads Compact Wheel Compact Wheel > --- UTILITY ---------- Large Storage Unit Weight Redist. System Signal Interpreter Light Armor Plating > --- WEAPON ----------- Guided EMP Blaster > --- INVENTORY -------- Light Ion Engine Light Ion Engine Improved Ion Engine Heat Sink Small Storage Unit Light Armor Plating Drone Bay Heavy Hammer [Rating: 25] Favorites ----------- Power Light Ion Engine Engine Light Ion Engine Power Core Light Nuclear Core Propulsion Aluminum Leg Treads Light Treads Leg Aluminum Leg Wheel Wheel Hover Unit Airjet Utility Large Storage Unit Device Structural Scanner Storage Large Storage Unit Processor Signal Interpreter Protection Weapon Shielding Weapon Light Assault Rifle Energy Gun Small Laser Energy Cannon Ion Cannon Ballistic Gun Light Assault Rifle Ballistic Cannon Assault Cannon Launcher Grenade Launcher Impact Weapon Heavy Hammer Build | -11 -10 -9 -9 -8 ------- Run | Scr Mat Mat Sto Mat Slots Evolved 4 | . . 2 . 2 Power . | . . . . . Propulsion 2 | . . 1 . 1 Utility 2 | . . 1 . 1 Weapon . | . . . . . Parts Attached 53 | . 6 9 13 25 Power 6 | . 1 . 2 3 Engine 4 | . 1 . 1 2 Core 2 | . . . 1 1 Reactor . | . . . . . Propulsion 19 | . 2 3 5 9 Treads 6 | . 1 1 1 3 Leg 8 | . . 1 4 3 Wheel 4 | . 1 1 . 2 Hover 1 | . . . . 1 Flight . | . . . . . Utility 7 | . 1 1 1 4 Device 3 | . . 1 . 2 Storage 1 | . 1 . . . Processor 1 | . . . . 1 Hackware . | . . . . . Protection 2 | . . . 1 1 Artifact . | . . . . . Weapon 21 | . 2 5 5 9 Energy Gun 3 | . . 1 1 1 Energy Cannon 1 | . . . . 1 Ballistic Gun 6 | . 2 1 1 2 Ballistic Cannon 2 | . . 1 1 . Launcher 4 | . . . 2 2 Special Weapon . | . . . . . Impact Weapon 5 | . . 2 . 3 Slashing Weapon . | . . . . . Piercing Weapon . | . . . . . Special Melee Weapon . | . . . . . Unidentified Prototypes 1 | . . . 1 . Parts Lost 47 | . 6 3 15 23 Power 6 | . 1 . 3 2 Propulsion 21 | . 2 2 5 12 Utility 5 | . . . 2 3 Weapon 15 | . 3 1 5 6 Highest Loss Streak 9 | . 6 2 9 8 Average Slot Usage (%) 83 | . 90 97 81 67 Engine 8 | . 13 11 2 5 Core 1 | . . . 6 1 Treads 9 | . 3 20 4 7 Leg 11 | . 19 . 14 13 Wheel 4 | . 3 11 3 1 Device 5 | . . 11 2 6 Storage 19 | . 25 22 22 11 Processor 2 | . . . . 9 Protection 1 | . . . 5 . Energy Gun 4 | . 9 7 . 1 Ballistic Gun 6 | . 14 5 5 1 Ballistic Cannon 1 | . . 2 2 . Launcher 2 | . . . 7 2 Impact Weapon 2 | . . 4 1 3 Naked Turns . | . . . . . Heaviest Build 33 | 11 27 32 32 33 Greatest Support 46 | 20 20 20 20 46 Greatest Overweight (x) 3 | . 2 3 3 3 Average Overweight (x) 1 | . . 2 1 . Largest Inventory Capacity 12 | 6 12 12 12 12 Average Capacity 11 | 6 10 12 12 10 Most Carried 12 | 6 10 12 12 12 Average Carried 9 | 6 7 10 10 8 Final Capacity 12 | 6 12 12 12 10 Final Carried 11 | 6 10 10 11 7 Class Distribution -------------------- 71% | Mutant 28% | Scavenger-Mutant Dominant Class ---------------- Mutant | -10/Materials Mutant | -9/Materials Mutant | -9/Storage Scavenger-Mutant | -8/Materials Resources | -11 -10 -9 -9 -8 ----------- Run | Scr Mat Mat Sto Mat Matter Collected 1166 | 201 112 150 208 495 Remotely . | . . . . . Salvage Created 2450 | 88 600 341 652 769 Parts 150 | 1 40 26 41 42 Haulers Intercepted 5 | . 2 . 2 1 Recyclers Shooed 1 | . . 1 . . Parts Field Recycled . | . . . . . Retrieved Matter . | . . . . . Parts Self-Destructed . | . . . . . Prevented . | . . . . . Kills | -11 -10 -9 -9 -8 ------- Run | Scr Mat Mat Sto Mat Combat Hostiles Destroyed 51 | . 15 11 14 11 Melee 1 | . . . . 1 Guns 31 | . 15 7 4 5 Cannons 7 | . . 4 3 . AOE 12 | . . . 7 5 Classes Destroyed 10 | 1 4 2 2 1 Worker 1 | . . . 1 . Builder 2 | . . . . 2 Hauler 5 | . 2 . 2 1 Recycler 6 | 1 . . 2 3 Operator 1 | . . . 1 . Watcher 2 | . 1 . 1 . Swarmer 9 | . 6 3 . . Grunt 27 | . 9 4 9 5 Brawler 2 | . . 1 . 1 Sentry 13 | . . 3 5 5 Best Kill Streak 9 | 1 4 3 9 6 Combat Bots Only 4 | . 4 3 4 3 Max Kills in Single Turn 4 | 1 1 1 3 4 Gunslinging . | . . . . . Exploded 1 | . . . 1 1 Melee 1 | . . . . 1 Uniques/NPCs Destroyed . | . . . . . Combat | -11 -10 -9 -9 -8 -------- Run | Scr Mat Mat Sto Mat Damage Taken 5398 | . 738 515 1701 2444 Core 1117 | . 162 65 333 557 Absorbed by Shields . | . . . . . Core Remaining (%) 45 | 100 35 . . . Volleys Fired 205 | 1 68 47 40 49 Largest 2 | 2 2 2 2 2 Hottest 94 | 60 60 88 94 93 Shots Fired 294 | 2 115 63 60 54 Gun 225 | 2 115 43 23 42 Cannon 42 | . . 20 18 4 Launcher 27 | . . . 19 8 Special . | . . . . . Kinetic 184 | 1 76 45 35 27 Thermal 77 | 1 39 18 . 19 Explosive 24 | . . . 18 6 Electromagnetic 9 | . . . 7 2 Robot Hit Streak 20 | 2 9 12 11 20 Robot Miss Streak 5 | . 5 3 4 2 Penetration Max . | . . . . . Secondary Targets 2 | . 1 1 . . Max Gunslinging Chain 1 | . 1 1 . . Shots Hit Robots 200 | 2 70 41 37 50 Core Hits 125 | 2 37 15 35 36 Critical Hits 1 | . 1 . . . Critical Kills . | . . . . . Critical Parts Destroyed 1 | . 1 . . . Melee Attacks 29 | . . 12 . 17 Impact 29 | . . 12 . 17 Slashing . | . . . . . Piercing . | . . . . . Sneak Attacks 2 | . . . . 2 Combat Hostiles . | . . . . . Follow-up Attacks 1 | . . . . 1 Damage Inflicted 4522 | 17 650 726 1313 1816 Guns 1728 | 17 647 291 281 492 Cannons 838 | . . 435 336 67 Explosions 1720 | . . . 696 1024 Melee 226 | . . . . 226 Ramming 10 | . 3 . . 7 Kinetic 1760 | 7 382 544 540 287 Thermal 917 | 10 265 182 . 460 Explosive 1268 | . . . 642 626 Electromagnetic 341 | . . . 131 210 Impact 226 | . . . . 226 Slashing . | . . . . . Piercing . | . . . . . Highest Corruption 2 | . . . . 2 Average Corruption 1 | . . . . 1 Corruption Purged . | . . . . . Effects 4 | . . . . 4 Message Errors 2 | . . . . 2 Data Loss (minor) 1 | . . . . 1 Targeting Errors 1 | . . . . 1 Overload Shots . | . . . . . Overflow Damage 181 | . . 22 17 142 Projectiles 22 | . . 22 . . Explosions 69 | . . . 17 52 Melee 90 | . . . . 90 Knockbacks 3 | . . 1 . 2 Impact 2 | . . . . 2 Kinetic 1 | . . 1 . . Secondary . | . . . . . Self-Inflicted Damage 74 | . . . 39 35 Shots 4 | . . . 3 1 Rammed 3 | . . . . 3 Targets Rammed 4 | . 1 . . 3 Kicked 1 | . 1 . . . Crushed . | . . . . . Highest Temperature 215 | 20 70 170 215 130 Average Temperature 40 | 10 22 49 61 47 Received Heat Transfer 1998 | . 267 153 552 1026 Siege Activations . | . . . . . Robots Corrupted . | . . . . . Combat Hostiles . | . . . . . Parts Fried 1 | . . . . 1 Impact Corruptions 3 | . . . . 3 Robots Melted . | . . . . . Combat Hostiles . | . . . . . Parts Melted 1 | . . . . 1 Heat Transferred 1724 | 25 600 444 . 655 Parts Sabotaged . | . . . . . Parts Stolen . | . . . . . Parts Stripped . | . . . . . Power Chain Reactions . | . . . . . Missiles Intercepted . | . . . . . Alert | -11 -10 -9 -9 -8 ------- Run | Scr Mat Mat Sto Mat Peak Influence 424 | 5 286 285 424 233 Average Influence 139 | 4 123 134 225 96 Maximum Alert Level 2 | . 1 1 2 1 Low Security (%) 72 | 100 80 74 45 84 Level 1 24 | . 19 25 42 15 Level 2 2 | . . . 11 . Level 3 . | . . . . . Level 4 . | . . . . . Level 5 . | . . . . . High Security . | . . . . . Max Security . | . . . . . Squads Dispatched 9 | . 3 1 3 2 Investigation 5 | . 2 1 1 1 Extermination . | . . . . . Reinforcement 4 | . 1 . 2 1 Assault . | . . . . . Garrison . | . . . . . Intercept . | . . . . . Construction Impeded . | . . . . . Haulers Reinforced . | . . . . . Stealth | -11 -10 -9 -9 -8 --------- Run | Scr Mat Mat Sto Mat Distress Signals 6 | . 2 . 1 3 Communications Jammed . | . . . . . Distress Signals . | . . . . . Times Spotted 87 | . 25 11 24 27 Peak Tracking Total 7 | . 6 3 7 7 Tactical Retreats 8 | . 2 . 1 5 Traps | -11 -10 -9 -9 -8 ------- Run | Scr Mat Mat Sto Mat Traps Triggered 2 | . 1 . 1 . Indirectly . | . . . . . Trap Hack Attempts . | . . . . . Triggered . | . . . . . Disarmed . | . . . . . Reprogrammed . | . . . . . Reused . | . . . . . Traps Extracted . | . . . . . Installed . | . . . . . Triggered . | . . . . . Machines | -11 -10 -9 -9 -8 ---------- Run | Scr Mat Mat Sto Mat Machines Disabled 5 | . . 1 2 2 Max in Single Turn 1 | . . 1 1 1 Machines Sabotaged . | . . . . . Garrisons Compromised . | . . . . . Overloaded Fab Kills . | . . . . . Fab Network Shutdowns . | . . . . . Hacking | -11 -10 -9 -9 -8 --------- Run | Scr Mat Mat Sto Mat Machines Accessed 11 | . 2 2 5 2 Terminals 11 | . 2 2 5 2 Fabricators . | . . . . . Repair Stations . | . . . . . Recycling Units . | . . . . . Scanalyzers . | . . . . . Garrison Access . | . . . . . Total Hacks 28 | . 5 5 12 6 Successful 17 | . 4 1 10 2 Failed 11 | . 1 4 2 4 Catastrophic 2 | . . . 2 . Database Lockouts . | . . . . . Manual 20 | . 3 2 9 6 Terminals 28 | . 5 5 12 6 Fabricators . | . . . . . Repair Stations . | . . . . . Recycling Units . | . . . . . Scanalyzers . | . . . . . Garrison Access . | . . . . . Terminal Hacks 14 | . 3 1 9 1 Record 1 | . . . 1 . Open Door 2 | . . . 2 . Alert Level 5 | . 2 1 2 . Unreport Threat 4 | . 1 . 2 1 Recall Investigation 1 | . . . 1 . Zone Layout 1 | . . . 1 . Fabricator Hacks . | . . . . . Repair Station Hacks . | . . . . . Recycling Unit Hacks . | . . . . . Scanalyzer . | . . . . . Garrison Access Hacks . | . . . . . Unauthorized Hacks 3 | . 1 . 1 1 Terminals 3 | . 1 . 1 1 Botnet 3 | . 1 . 1 1 Fabricators . | . . . . . Repair Stations . | . . . . . Recycling Units . | . . . . . Scanalyzers . | . . . . . Garrison Access . | . . . . . Data Cores Recovered . | . . . . . Used . | . . . . . Hacking Detections 10 | . 2 2 4 2 Full Trace Events 4 | . 1 1 1 1 Feedback Events . | . . . . . Feedback Blocked . | . . . . . Robot Schematics Acquired . | . . . . . Robots Built . | . . . . . Matter . | . . . . . Time . | . . . . . Total Robot Build Rating . | . . . . . Part Schematics Acquired . | . . . . . Parts Built . | . . . . . Matter . | . . . . . Time . | . . . . . Total Part Build Rating . | . . . . . Parts Repaired . | . . . . . Time . | . . . . . Parts Recycled . | . . . . . Recycled Matter . | . . . . . Retrieved Matter . | . . . . . Retrieved Components . | . . . . . Parts Scanalyzed . | . . . . . Part Schematics Acquired . | . . . . . Parts Damaged . | . . . . . Bothacking | -11 -10 -9 -9 -8 ------------ Run | Scr Mat Mat Sto Mat Used RIF Installer . | . . . . . Robots Hacked . | . . . . . Non-combat . | . . . . . Combat . | . . . . . Robot Hacks Applied . | . . . . . Relay Couplers Released . | . . . . . Robots Rewired . | . . . . . Allies Hacked . | . . . . . Hacks Repelled . | . . . . . Allies | -11 -10 -9 -9 -8 -------- Run | Scr Mat Mat Sto Mat Total Allies . | . . . . . Largest Group . | . . . . . Highest-Rated Group . | . . . . . Highest-Rated Ally . | . . . . . Total Orders 1 | . . . . 1 EXPLORE 1 | . . . . 1 Ally Attacks . | . . . . . Total Damage . | . . . . . Kills . | . . . . . Allies Corrupted . | . . . . . Allies Melted . | . . . . . Intel | -11 -10 -9 -9 -8 ------- Run | Scr Mat Mat Sto Mat Robot Analysis Total . | . . . . . Derelict Logs Recovered . | . . . . . Drone Launches 1 | . . . . 1 Drone Recoveries . | . . . . . Exploration | -11 -10 -9 -9 -8 ------------- Run | Scr Mat Mat Sto Mat Turns Passed 1829 | 15 442 442 394 536 Spaces Moved 850 | 11 163 273 175 228 Core 6 | . . . . 6 Treads 60 | . 42 . . 18 Legs 391 | 11 121 . 122 137 Wheels 363 | . . 273 53 37 Hover 30 | . . . . 30 Flight . | . . . . . Fastest Speed 90 | 120 120 90 90 100 Average Speed 129 | 120 149 101 146 134 Slowest Speed 210 | 120 180 110 210 200 Overloaded Moves . | . . . . . Propulsion Burnouts . | . . . . . Robots Hopped . | . . . . . Cave-ins Triggered 1 | . . . 1 . Exploration Rate (%) 28 | 3 30 26 56 26 Regions Visited 4 Branch Regions 1 Pre-discovered Areas . | . . . . . Known Exits Taken . | . . . . . Unknown Exits Taken 4 | 1 1 1 1 . Scrap Searched . | . . . . . Spaces Dug 15 | . . 7 . 8 Terrain Destroyed 169 | . . 9 112 48 Melee 15 | . . 7 . 8 Projectile 5 | . . 2 3 . AOE 149 | . . . 109 40 Actions | -11 -10 -9 -9 -8 --------- Run | Scr Mat Mat Sto Mat Total 1256 | 11 264 354 254 373 Wait 53 | . 11 2 11 29 Move 846 | 10 162 272 174 228 Hop . | . . . . . Pick Up 56 | . 13 9 13 21 Fast Attach . | . . . . . Attach 49 | . 6 6 13 24 Detach 2 | . . . 1 1 Swap 4 | . . 3 . 1 Drop 9 | . 3 3 2 1 Fire 205 | 1 68 47 40 49 Melee 28 | . . 12 . 16 Ram 1 | . . . . 1 Kick 3 | . 1 . . 2 Crush . | . . . . . Escape Stasis . | . . . . . Rewire . | . . . . . Trap . | . . . . . Miscellaneous . | . . . . . Route ------- -11/Scrapyard -10/Materials (discovered 2 exits: *Mat / [*Min]) -9/Materials (discovered 2 exits: [*Min] / *Sto) -9/Storage -8/Materials History --------- Turn | Location | Event 1 | -11/Scrapyard | Discovered new exit (range 3) 16 | -11/Scrapyard | Entered Materials 260 | -10/Materials | Discovered new exit (range 12) 331 | -10/Materials | Build established: Mutant 349 | -10/Materials | Core integrity fell below 50% 377 | -10/Materials | Lost 6 parts (1p2n3w) 409 | -10/Materials | Discovered new exit (range 16) 458 | -10/Materials | Entered another Materials area 458 | -9/Materials | Evolved 2 slots: Propulsion x1, Utility x1 843 | -9/Materials | Discovered new exit (range 7) 860 | -9/Materials | Discovered new exit (range 14) 900 | -9/Materials | Entered Storage 1012 | -9/Storage | Core integrity fell below 50% 1029 | -9/Storage | Crushed by falling debris 1058 | -9/Storage | Lost 9 parts (2p3n1u3w) 1091 | -9/Storage | Core integrity fell below 20% 1279 | -9/Storage | Discovered new exit (range 12) 1294 | -9/Storage | Entered Materials 1294 | -8/Materials | Evolved 2 slots: Propulsion x1, Utility x1 1309 | -8/Materials | Lost 5 parts (1p1n1u2w) 1528 | -8/Materials | Lost 8 parts (4n2u2w) 1566 | -8/Materials | Lost 3 parts (1p1n1w) 1634 | -8/Materials | Lost 3 parts (2n1w) 1756 | -8/Materials | Core integrity fell below 50% 1805 | -8/Materials | Lost 5 parts (2n1u2w) 1828 | -8/Materials | Core integrity fell below 20% 1830 | -8/Materials | Destroyed by Y-45 Defender with Heavy Assault Rifle Last Messages --------------- 01755_ Lgt. Armor Plating destroyed. 01755_ Y-45 Defender destroyed. 01755_ G-47 Trooper misfires. 01756_ W-25 Informer sends out distress signal. 01759_ Com. Wheel destroyed. 01762_ K-01 Serf collects debris. 01763_ Gui. EMP Blaster destroyed. 01765_ Acquired 18 matter. 01768_ Acquired 7 matter. 01774_ Lgt. Treads destroyed. 01786_ 4H/A/G=5,JXB31L/DCVZYBL8V5JDEX1D>J4 01804_ A8BC29H3EW8G%MW =U>G/SNWL